[Event "Czech Youth U12 Boys 2024"]
[Site "Kouty nad Desnou"]
[Date "2024.03.14"]
[Round "7.2"]
[White "Kroulik, Stepan"]
[Black "Policar, Martin"]
[Result "0-1"]
[ECO "A16"]
[WhiteElo "1683"]
[BlackElo "1758"]
[Annotator "NA RC"]
[PlyCount "62"]
[EventDate "2024.03.10"]
[EventType "swiss"]
[EventCountry "CZE"]
[SourceTitle "playchess.com"]
[Source "ChessBase"]
[SourceQuality "1"]
[TimeControl "40/5400+30:1800+30"]

1. c4 {[%emt 0:00:05]} Nf6 {[%emt 0:00:47]} 2. Nc3 {[%emt 0:00:17]} d5 {[%emt 0:00:26]} 3. cxd5 {[%emt 0:00:47]} Nxd5 {[%emt 0:00:10]} 4. g3 {[%emt 0:00:29]} g6 {[%emt 0:00:25]} 5. Bg2 {[%emt 0:00:48]} Nxc3 {[%emt 0:00:15]} 6. bxc3 {[%emt 0:00:43]} Bg7 {[%emt 0:00:12]} 7. Rb1 {[%emt 0:01:38]} O-O {[%emt 0:04:10]} 8. e4 {[%emt 0:05:30]} c5 {[%emt 0:00:42]} 9. Ne2 {[%emt 0:03:00]} Nc6 {[%emt 0:00:38]} 10. O-O {[%emt 0:00:54]} c4 {[%emt 0:03:47]} 11. Nf4 {[%emt 0:13:35]} Ne5 {[%emt 0:02:46]} 12. Ba3 {[%emt 0:03:55]} Rb8 {[%emt 0:06:35]} 13. Qc2 {[%emt 0:05:04]} Re8 {[%emt 0:10:47]} 14. h3 {[%emt 0:07:58]} Nd3 {[%emt 0:02:29]} 15. Nxd3 {[%emt 0:01:00]} Qxd3 {[%emt 0:00:48]} 16. Qxd3 {[%emt 0:00:22]} cxd3 {[%emt 0:00:07]} 17. f4 {[%emt 0:00:59]} Be6 {[%emt 0:00:43]} 18. Rb2 {[%emt 0:01:00]} Bc4 {[%emt 0:01:48]} 19. Rf3 {[%emt 0:02:10]} b5 {[%emt 0:01:08]} 20. Bc5 {[%emt 0:02:06]} a5 {[%emt 0:04:43]} 21. a3 {[%emt 0:00:47]} Red8 {[%emt 0:04:39]} 22. Bxe7 {[%emt 0:05:28]} Rd7 {[%emt 0:00:18]} 23. Bc5 {[%emt 0:01:31]} Bxc3 {[%emt 0:00:10]} 24. dxc3 {[%emt 0:01:38]} d2 {[%emt 0:00:06]} 25. Rxd2 {[%emt 0:02:19]} Rxd2 {[%emt 0:00:04]} 26. f5 {[%emt 0:04:00]} Bd3 {[%emt 0:02:15]} 27. fxg6 {[%emt 0:05:00]} hxg6 {[%emt 0:00:42]} 28. Re3 {[%emt 0:01:12]} Rc8 {[%emt 0:01:02]} 29. Bb6 {[%emt 0:01:49]} b4 {[%emt 0:00:19]} 30. Bxa5 {[%emt 0:05:59]} b3 {[%emt 0:01:55]} 31. c4 {[%emt 0:01:44]} Rd1+ {[%emt 0:00:24]} 0-1

[Event "Czech Youth U12 Boys 2024"]
[Site "Kouty nad Desnou"]
[Date "2024.03.14"]
[Round "7.3"]
[White "Velim, Vojtech"]
[Black "Artamonov, Mikhail"]
[Result "1-0"]
[ECO "E93"]
[WhiteElo "1889"]
[BlackElo "1727"]
[Annotator "NA"]
[PlyCount "177"]
[EventDate "2024.03.10"]
[EventType "swiss"]
[EventCountry "CZE"]
[SourceTitle "playchess.com"]
[Source "ChessBase"]
[SourceQuality "1"]
[TimeControl "40/5400+30:1800+30"]

1. Nf3 {[%emt 0:00:04]} Nf6 {[%emt 0:00:29]} 2. c4 {[%emt 0:00:06]} d6 {[%emt 0:00:53]} 3. d4 {[%emt 0:00:11]} g6 {[%emt 0:00:21]} 4. Nc3 {[%emt 0:00:07]} Bg7 {[%emt 0:00:25]} 5. e4 {[%emt 0:00:28]} O-O {[%emt 0:00:07]} 6. Be2 {[%emt 0:00:11]} e5 {[%emt 0:00:16]} 7. d5 {[%emt 0:00:05]} Nbd7 {[%emt 0:01:11]} 8. Bg5 {[%emt 0:00:12]} h6 {[%emt 0:05:07]} 9. Bh4 {[%emt 0:00:06]} g5 {[%emt 0:00:27]} 10. Bg3 {[%emt 0:00:13]} Nc5 {[%emt 0:00:57]} 11. Nd2 {[%emt 0:00:21]} a5 {[%emt 0:00:31] E93: Königsindisch (Klassisches System).} 12. b3 {[%emt 0:01:43]} Nfxe4 {[%emt 0:04:45]} 13. Ndxe4 {[%emt 0:00:13]} Nxe4 {[%emt 0:00:06]} 14. Nxe4 {[%emt 0:00:18]} f5 {[%emt 0:00:07]} 15. Bd3 {[%emt 0:00:14]} fxe4 {[%emt 0:01:23]} 16. Bxe4 {[%emt 0:00:07]} Qf6 {[%emt 0:01:51]} 17. O-O {[%emt 0:17:46]} Bf5 {[%emt 0:02:33]} 18. f3 {[%emt 0:01:33]} Rf7 {[%emt 0:02:25]} 19. Qd2 {[%emt 0:09:50]} Raf8 {[%emt 0:00:30]} 20. Qd3 {[%emt 0:09:40]} (20. Rae1 $14) 20... Qg6 {[%emt 0:05:30]} 21. Rae1 {[%emt 0:09:40]} h5 {[%emt 0:03:11]} 22. Bxf5 {[%emt 0:05:00]} Rxf5 {[%emt 0:03:04]} 23. a3 {[%emt 0:12:19]} Qf6 {[%emt 0:04:06]} 24. h3 {[%emt 0:05:04]} h4 {[%emt 0:10:48]} (24... b6 $14) 25. Bf2 {[%emt 0:02:19]} Re8 {[%emt 0:13:55]} 26. Re4 {[%emt 0:01:09]} Rf8 {[%emt 0:06:10]} 27. Be3 {[%emt 0:06:25]} Qg6 {[%emt 0:02:37]} 28. Rg4 {[%emt 0:02:55]} R8f6 {[%emt 0:00:33]} 29. Qe4 {[%emt 0:02:13]} Qh6 {[%emt 0:02:37]} (29... b6 $16 {was worth a try.} 30. b4 axb4) 30. Rb1 {[%emt 0:01:15]} Qg6 {[%emt 0:02:46]} 31. b4 axb4 {[%emt 0:02:03]} 32. Rxb4 {[%emt 0:01:42]} b6 33. Ra4 {[%emt 0:00:22]} Bh6 {[%emt 0:03:11]} 34. Ra7 {[%emt 0:03:51]} Qf7 $2 {[%emt 0:00:36]} (34... Rf7 {ist eine bessere Verteidigung.} 35. c5 dxc5) 35. a4 {[%emt 0:01:44]} Rf4 {[%emt 0:05:58]} 36. Bxf4 {[%emt 0:00:30]} exf4 {[%emt 0:00:06]} 37. Ra8+ {[%emt 0:00:58]} Kg7 {[%emt 0:00:16]} 38. Re8 {[%emt 0:00:52]} Qg6 {[%emt 0:02:08]} 39. Qe7+ {[%emt 0:01:51]} (39. Re7+ Rf7 40. Qd4+ (40. Qxg6+ Kxg6 41. Re6+ Kh5 $18) 40... Qf6 41. Qxf6+ Kxf6 42. Re6+ Kg7 $18) 39... Rf7 {[%emt 0:00:49]} 40. Qd8 {[%emt 0:00:16]} Qb1+ {[%emt 0:00:22]} 41. Kh2 {[%emt 0:30:05]} Qf5 {[%emt 0:37:46]} 42. Rg8+ {[%emt 0:04:02]} Kh7 {[%emt 0:00:26]} 43. Rh8+ {[%emt 0:01:03]} (43. Qb8 $142) 43... Kg6 {[%emt 0:00:36]} 44. Qg8+ {[%emt 0:00:45]} Rg7 {[%emt 0:02:18]} 45. Qe8+ {[%emt 0:00:18]} Rf7 {[%emt 0:01:47]} 46. Qd8 {[%emt 0:01:57]} Bg7 $2 {[%emt 0:03:06]} (46... Qf6 47. Qe8 Qe7 48. Qg8+ Rg7) 47. Re8 $2 {[%emt 0:00:57]} (47. Qg8) 47... Bf6 {[%emt 0:00:48]} 48. Qb8 {[%emt 0:00:36]} Qd7 {[%emt 0:01:07]} 49. Re6 {[%emt 0:00:46]} Kg7 {[%emt 0:01:13]} 50. Re8 $2 {[%emt 0:00:33]} (50. a5 $18 bxa5 51. Qb1) 50... Qxa4 {[%emt 0:00:34]} 51. Rg8+ {[%emt 0:00:08]} Kh7 {[%emt 0:00:06]} 52. Qc8 $2 {[%emt 0:00:48]} (52. R8xg5 {setzt Matt} Bxg5 53. Rxg5 Rg7 54. Rh5+ (54. Rxg7+ Kxg7 55. Qxc7+ Kg8 $18) 54... Kg6 55. Rxh4 (55. Qh8 Qd7 $18) 55... Qd7 56. Qh8 (56. Rxf4 Qe7 $18) 56... Rh7 57. Rg4+ Qxg4 58. Qe8+ Rf7 59. fxg4 (59. hxg4 Kg7 $18)) 52... Qxc4 $2 {[%emt 0:00:52]} (52... Qd7 $16) 53. Re8 {[%emt 0:00:33]} Qxd5 {[%emt 0:00:25]} 54. Re4 {[%emt 0:00:23]} (54. Qb8) 54... Rg7 $2 {[%emt 0:00:31]} (54... c5 $19 55. Qa6 Re7 56. Rxe7+ (56. Qxb6 $2 {loses.} Rxe4 57. fxe4 Qe5 $19) 56... Bxe7) 55. Qe8 $2 {[%emt 0:00:29]} Qf7 {[%emt 0:00:25]} 56. Qc8 {[%emt 0:00:15]} Qd7 {[%emt 0:00:28]} 57. Qa6 {[%emt 0:00:28]} d5 {[%emt 0:00:29]} 58. Re1 {[%emt 0:00:33]} d4 {[%emt 0:00:19]} 59. Qd3+ {[%emt 0:00:05]} Kh8 {[%emt 0:00:18]} (59... Kh6 $142 60. Qb3 Re7 61. Rxe7 Bxe7) 60. Ra1 {[%emt 0:00:31]} (60. Qe4 {ist wohl besser.}) 60... Qd5 {[%emt 0:00:40]} 61. Re1 {[%emt 0:00:29]} Rg8 {[%emt 0:00:30]} 62. Ra1 {[%emt 0:00:51]} Qd7 {[%emt 0:00:37]} 63. Ra7 $2 {[%emt 0:00:38]} (63. Qe4 d3 64. Rd1) 63... Kg7 {[%emt 0:00:43]} 64. Qc4 {[%emt 0:00:25]} Rc8 {[%emt 0:00:25]} 65. Qd3 {[%emt 0:00:16]} Qe6 {[%emt 0:00:33]} 66. Qc2 {[%emt 0:00:19]} Bd8 {[%emt 0:00:30]} (66... Kh6 $142 67. Qd3 Qd7) 67. Qd3 {[%emt 0:00:47]} Qf6 {[%emt 0:00:35]} 68. Qa6 {[%emt 0:00:36]} Rb8 {[%emt 0:00:16]} 69. Qc4 {[%emt 0:00:10] [#]} Qe5 {[%emt 0:00:22]} ({Black should try} 69... b5 $1 $17 {[%cal Rb5c4]} 70. Qd5 (70. Rxc7+ $2 Kh6 $19) 70... Kh6) 70. Ra2 {[%emt 0:01:07]} b5 {[%emt 0:00:35]} 71. Qd3 $2 {[%emt 0:00:22]} (71. Qc6 {was the only chance.}) 71... Rb7 {[%emt 0:00:29]} 72. Re2 {[%emt 0:00:12]} Qd5 {[%emt 0:00:27]} 73. Re4 $19 {[%emt 0:00:57]} Qc4 {[%emt 0:01:01]} 74. Qd2 {[%emt 0:00:34]} Bf6 {[%emt 0:00:28]} 75. Qxf4 {[%emt 0:00:22]} Qc5 {[%emt 0:00:31]} 76. Qd2 {[%emt 0:00:44]} Be5+ {[%emt 0:00:30]} 77. f4 {[%emt 0:00:10]} Bf6 {[%emt 0:00:21]} 78. fxg5 {[%emt 0:00:43]} Be5+ {[%emt 0:00:13]} 79. Kh1 {[%emt 0:00:10]} Ra7 {[%emt 0:00:42]} 80. Re1 {[%emt 0:00:31]} Bg3 {[%emt 0:00:14]} 81. Rc1 {[%emt 0:00:22]} Qe5 {[%emt 0:00:59]} 82. Rxd4 {[%emt 0:00:29]} Qf5 {[%emt 0:00:29]} 83. Rd7+ {[%emt 0:00:43]} Kg6 {[%emt 0:00:14]} 84. Rc6+ {[%emt 0:00:26]} Bd6 {[%emt 0:00:28]} 85. Rcxd6+ {[%emt 0:00:24]} cxd6 {[%emt 0:00:06]} 86. Qxd6+ {[%emt 0:00:10]} Kxg5 {[%emt 0:00:14]} 87. Rxa7 {[%emt 0:00:17]} Qf1+ {[%emt 0:00:22]} 88. Kh2 {[%emt 0:00:05]} Qf5 {[%emt 0:00:23]} 89. Re7 {[%emt 0:00:40]} 1-0

[Event "Czech Youth U12 Boys 2024"]
[Site "Kouty nad Desnou"]
[Date "2024.03.14"]
[Round "7.4"]
[White "Kala, Jakub"]
[Black "Zrust, Lukas"]
[Result "0-1"]
[ECO "A04"]
[WhiteElo "1750"]
[BlackElo "1893"]
[Annotator "NA RC"]
[PlyCount "120"]
[EventDate "2024.03.10"]
[EventType "swiss"]
[EventCountry "CZE"]
[SourceTitle "playchess.com"]
[Source "ChessBase"]
[SourceQuality "1"]
[TimeControl "40/5400+30:1800+30"]

1. Nf3 {[%emt 0:00:06]} g6 {[%emt 0:00:35]} 2. c4 {[%emt 0:00:08]} Bg7 {[%emt 0:00:04]} 3. Nc3 {[%emt 0:00:16]} d6 {[%emt 0:00:23]} 4. d4 {[%emt 0:00:29]} Nf6 {[%emt 0:00:43]} 5. e4 {[%emt 0:00:23]} Nbd7 {[%emt 0:00:25]} 6. Be2 {[%emt 0:00:45]} O-O {[%emt 0:00:10]} 7. O-O {[%emt 0:00:51]} e5 {[%emt 0:01:15]} 8. Be3 {[%emt 0:00:51]} Re8 {[%emt 0:01:48]} 9. Qc2 {[%emt 0:01:59]} exd4 {[%emt 0:08:02]} 10. Nxd4 {[%emt 0:00:59]} Nc5 {[%emt 0:00:50]} 11. f3 {[%emt 0:02:04]} c6 {[%emt 0:05:10] E94: King's Indian: Classical: 6 Be2 e5 7 0-0: Various Black 7th moves.} 12. Bf2 {[%emt 0:05:57]} Ne6 {[%emt 0:06:18]} 13. Rad1 {[%emt 0:03:16]} Nxd4 {[%emt 0:04:02]} 14. Bxd4 {[%emt 0:00:19]} Qc7 {[%emt 0:04:26]} 15. b4 {[%emt 0:06:16]} Be6 {[%emt 0:09:29]} 16. Qb2 {[%emt 0:07:29]} Nh5 {[%emt 0:04:51]} ({Better is} 16... a5 $14) 17. Bxg7 {[%emt 0:18:12]} Nxg7 {[%emt 0:05:39]} 18. Rd2 {[%emt 0:01:09]} Rad8 {[%emt 0:01:58]} 19. Rfd1 {[%emt 0:03:19]} Qe7 {[%emt 0:17:13]} 20. Qa3 {[%emt 0:06:16]} a6 {[%emt 0:03:36]} 21. b5 {[%emt 0:02:57]} axb5 {[%emt 0:01:18]} 22. cxb5 {[%emt 0:02:00]} d5 {[%emt 0:02:05]} 23. Qxe7 {[%emt 0:09:13]} Rxe7 {[%emt 0:00:03]} 24. bxc6 {[%emt 0:00:31]} bxc6 {[%emt 0:00:37]} 25. exd5 {[%emt 0:01:33]} Bxd5 {[%emt 0:02:43]} 26. Nxd5 {[%emt 0:08:05]} cxd5 {[%emt 0:02:05]} 27. Bc4 {[%emt 0:01:50]} Rc8 {[%emt 0:06:24]} 28. Bxd5 {[%emt 0:01:15]} Nf5 {[%emt 0:00:48]} 29. Be4 {[%emt 0:01:12]} Rc5 {[%emt 0:02:28]} 30. Rd5 {[%emt 0:01:11]} Rxd5 {[%emt 0:01:39]} 31. Rxd5 {[%emt 0:00:13]} (31. Bxd5 Ne3 32. Rd3 Nxd5 33. Rxd5 h5) 31... Ne3 {[%emt 0:01:07]} 32. Rd8+ {[%emt 0:04:16]} Kg7 {[%emt 0:01:23]} 33. a4 {[%emt 0:01:48]} Ra7 {[%emt 0:00:53]} 34. Ra8 {[%emt 0:00:27]} Rd7 {[%emt 0:01:49] [#]} 35. g3 {[%emt 0:02:34]} ({Better is} 35. Kf2 $1 $16 {[%cal Rf2e3]} Nc4 36. a5) 35... f5 {[%emt 0:01:46]} (35... Rd2 $14) 36. Bc6 {[%emt 0:01:07]} Rd2 {[%emt 0:00:50]} 37. a5 {[%emt 0:01:23]} Rg2+ {[%emt 0:00:41]} 38. Kh1 {[%emt 0:00:05] [#]} Rc2 $1 {[%emt 0:00:21]} 39. Ra7+ {[%emt 0:02:15]} Kf6 {[%emt 0:00:56]} 40. h4 $2 {[%emt 0:01:36]} (40. Kg1 {only move.} Rxc6 41. Kf2) 40... Rc1+ {[%emt 0:01:03]} 41. Kh2 {[%emt 0:30:08]} Rxc6 {[%emt 0:30:05]} 42. Rxh7 {[%emt 0:01:40]} Ra6 {[%emt 0:01:30]} (42... Rc2+ $142 43. Kg1 Rg2+ 44. Kh1 Rxg3) 43. h5 {[%emt 0:00:41]} Rxa5 {[%emt 0:00:33]} 44. Rh6 {[%emt 0:00:43] [#]} Ra2+ $1 {[%emt 0:00:56]} 45. Kh1 {[%emt 0:01:38]} Kg5 {[%emt 0:01:43]} 46. Rxg6+ {[%emt 0:00:12]} Kxh5 {[%emt 0:00:02]} 47. Re6 $2 {[%emt 0:00:19]} (47. Rg8) 47... Ra1+ {[%emt 0:01:25]} 48. Kh2 {[%emt 0:00:06] [#]} Nf1+ $2 {[%emt 0:00:56]} ({Better is} 48... Re1 $1 $19 49. Rf6 Re2+ (49... Rf1 $2 50. Rf8 $19) 50. Kh1 Rf2) 49. Kg2 $15 {[%emt 0:02:25]} Kg5 {[%emt 0:01:18]} 50. g4 {[%emt 0:01:04]} f4 {[%emt 0:00:36]} 51. Re5+ {[%emt 0:00:06]} Kg6 {[%emt 0:00:17]} 52. Re6+ {[%emt 0:01:26]} Kf7 {[%emt 0:00:18]} 53. Re4 {[%emt 0:00:49]} Ne3+ {[%emt 0:00:21]} 54. Kf2 {[%emt 0:00:34]} Ra2+ {[%emt 0:00:01]} 55. Ke1 {[%emt 0:00:08]} Kg6 {[%emt 0:00:40]} 56. Re6+ {[%emt 0:00:14]} Kg5 {[%emt 0:00:16]} 57. Re5+ {[%emt 0:00:06]} Kh4 {[%emt 0:01:05]} 58. g5 {[%emt 0:00:54]} Kg3 {[%emt 0:02:10]} 59. g6 {[%emt 0:00:25]} Kxf3 {[%emt 0:00:04]} 60. g7 {[%emt 0:00:52]} Re2# {[%emt 0:00:05]} 0-1

[Event "Czech Youth U12 Boys 2024"]
[Site "Kouty nad Desnou"]
[Date "2024.03.14"]
[Round "7.5"]
[White "Bara, Jan"]
[Black "Sudrich, Radek"]
[Result "1/2-1/2"]
[ECO "A10"]
[WhiteElo "1852"]
[BlackElo "1998"]
[Annotator "RC"]
[PlyCount "142"]
[EventDate "2024.03.10"]
[EventType "swiss"]
[EventCountry "CZE"]
[SourceTitle "playchess.com"]
[Source "ChessBase"]
[SourceQuality "1"]
[TimeControl "40/5400+30:1800+30"]

1. c4 {[%emt 0:01:04]} g6 {[%emt 0:00:41]} 2. g3 {[%emt 0:00:31]} Bg7 {[%emt 0:00:10]} 3. Bg2 {[%emt 0:00:14]} c5 {[%emt 0:00:21]} 4. Nc3 {[%emt 0:00:34]} Nf6 {[%emt 0:01:48]} 5. d3 {[%emt 0:02:57]} Nc6 {[%emt 0:00:18]} 6. Rb1 {[%emt 0:00:46]} O-O {[%emt 0:02:59]} 7. a3 {[%emt 0:00:44]} e6 {[%emt 0:02:25]} 8. Nf3 {[%emt 0:07:32]} d5 {[%emt 0:08:44]} 9. cxd5 {[%emt 0:00:41]} Nxd5 {[%emt 0:02:37]} 10. Bd2 {[%emt 0:02:57]} Bd7 {[%emt 0:02:08]} 11. O-O {[%emt 0:03:16]} Nce7 {[%emt 0:01:13]} 12. e4 {[%emt 0:05:07]} Nxc3 {[%emt 0:02:15]} 13. Bxc3 {[%emt 0:00:55]} Bb5 {[%emt 0:01:01]} 14. Bxg7 {[%emt 0:03:28]} Kxg7 {[%emt 0:00:12]} 15. Ne5 {[%emt 0:03:39]} Qd4 {[%emt 0:02:06]} 16. Qb3 {[%emt 0:04:14]} Ba6 {[%emt 0:04:55]} 17. Qc3 {[%emt 0:02:36]} Rad8 {[%emt 0:01:28]} 18. Rfd1 {[%emt 0:04:48]} f6 {[%emt 0:02:46]} 19. Nc4 {[%emt 0:05:37]} e5 {[%emt 0:03:08]} 20. Qxd4 {[%emt 0:04:21]} Rxd4 {[%emt 0:00:16]} 21. b3 {[%emt 0:04:23]} Rfd8 {[%emt 0:01:04]} 22. Bf1 {[%emt 0:00:22]} Bxc4 {[%emt 0:00:36]} 23. bxc4 {[%emt 0:00:03]} b6 {[%emt 0:00:11]} 24. f3 {[%emt 0:03:04]} Nc6 {[%emt 0:01:03]} 25. Kf2 {[%emt 0:01:49]} Kf7 {[%emt 0:03:16]} 26. Be2 {[%emt 0:11:12]} R4d6 {[%emt 0:07:38]} 27. Bf1 {[%emt 0:04:28]} Nd4 {[%emt 0:01:47]} 28. Rd2 {[%emt 0:02:25]} Nc6 {[%emt 0:02:04]} 29. Rdd1 {[%emt 0:00:04]} Na5 {[%emt 0:00:12]} 30. Be2 {[%emt 0:01:35]} Rd4 {[%emt 0:00:36]} 31. Ke1 {[%emt 0:02:36]} R8d6 {[%emt 0:03:51]} 32. Rb2 {[%emt 0:02:33]} Rd8 {[%emt 0:08:14]} 33. Rbb1 {[%emt 0:00:24]} Nc6 {[%emt 0:02:03]} 34. Kf2 {[%emt 0:01:23]} Rh8 {[%emt 0:01:49]} 35. Rh1 {[%emt 0:03:54]} h5 {[%emt 0:01:49]} 36. h4 {[%emt 0:03:53]} f5 {[%emt 0:01:34]} 37. Rbf1 {[%emt 0:01:51]} Kf6 {[%emt 0:02:56]} 38. Kg2 {[%emt 0:01:02]} f4 {[%emt 0:01:11]} 39. g4 {[%emt 0:00:40]} Rg8 {[%emt 0:01:11]} 40. g5+ {[%emt 0:00:28]} Ke7 {[%emt 0:00:30]} 41. Rb1 {[%emt 0:30:25]} Rdd8 {[%emt 0:30:09]} 42. Rhc1 {[%emt 0:01:46]} Nd4 {[%emt 0:00:27]} 43. Kf2 {[%emt 0:00:28]} Kd6 {[%emt 0:00:46]} 44. Rb2 {[%emt 0:01:19]} Kc6 {[%emt 0:00:22]} 45. Rcb1 {[%emt 0:00:09]} Rd6 {[%emt 0:02:14]} 46. Bd1 {[%emt 0:01:15]} Rgd8 {[%emt 0:00:45]} 47. Ba4+ {[%emt 0:00:24]} Kc7 {[%emt 0:00:16]} 48. Bd1 {[%emt 0:00:22]} Rf8 {[%emt 0:00:47]} 49. Be2 {[%emt 0:01:08]} Rfd8 {[%emt 0:05:31]} 50. Bd1 {[%emt 0:00:11]} Nc6 {[%emt 0:01:55]} 51. Bc2 {[%emt 0:00:31]} Na5 {[%emt 0:00:34]} 52. Ke1 {[%emt 0:01:18]} Rd4 {[%emt 0:00:35]} 53. Rd1 {[%emt 0:01:20]} Nc6 {[%emt 0:02:01]} 54. Rdb1 {[%emt 0:00:32]} R4d6 {[%emt 0:00:58]} 55. Kf2 {[%emt 0:00:23]} Nd4 {[%emt 0:06:46]} 56. Bd1 {[%emt 0:00:01]} R8d7 {[%emt 0:01:35]} 57. Rc1 {[%emt 0:01:14]} Nc6 {[%emt 0:00:47]} 58. Bc2 {[%emt 0:00:28]} Na5 {[%emt 0:00:53]} 59. Ke1 {[%emt 0:01:16]} Rd8 {[%emt 0:03:40]} 60. Bb1 {[%emt 0:00:51]} Nc6 {[%emt 0:01:27]} 61. Bc2 {[%emt 0:00:36]} Nd4 {[%emt 0:00:14]} 62. Bd1 {[%emt 0:00:22]} Ne6 {[%emt 0:02:03]} 63. Bc2 {[%emt 0:00:28]} Rd4 {[%emt 0:01:17]} 64. Rcb1 {[%emt 0:00:33]} Ng7 {[%emt 0:00:23]} 65. Rc1 {[%emt 0:00:34]} R8d6 66. Rcb1 {[%emt 0:00:11]} a6 {[%emt 0:01:01]} 67. Kf2 {[%emt 0:00:24]} Re6 {[%emt 0:00:22]} 68. Ke2 {[%emt 0:00:26]} Rd8 {[%emt 0:00:15]} 69. Ba4 {[%emt 0:00:24]} Red6 {[%emt 0:00:29]} 70. Bc2 {[%emt 0:00:08]} Ne6 {[%emt 0:00:20]} 71. Kf2 {[%emt 0:00:07]} Nd4 {[%emt 0:00:25]} 1/2-1/2

[Event "Czech Youth U12 Boys 2024"]
[Site "Kouty nad Desnou"]
[Date "2024.03.14"]
[Round "7.6"]
[White "Krisica, Lukas"]
[Black "Hladky, Mikulas"]
[Result "0-1"]
[ECO "D91"]
[WhiteElo "1531"]
[BlackElo "1798"]
[Annotator "NA RC"]
[PlyCount "66"]
[EventDate "2024.03.10"]
[EventType "swiss"]
[EventCountry "CZE"]
[SourceTitle "playchess.com"]
[Source "ChessBase"]
[SourceQuality "1"]
[TimeControl "40/5400+30:1800+30"]

1. Nf3 {[%emt 0:00:41]} Nf6 {[%emt 0:00:20]} 2. d4 {[%emt 0:01:13]} g6 {[%emt 0:00:22]} 3. c4 {[%emt 0:01:38]} Bg7 {[%emt 0:00:23]} 4. Nc3 {[%emt 0:02:32]} d5 {[%emt 0:00:47]} 5. Bg5 {[%emt 0:01:49]} Ne4 {[%emt 0:01:24]} 6. cxd5 {[%emt 0:07:20]} Nxg5 {[%emt 0:00:22]} 7. Nxg5 {[%emt 0:00:07]} e6 {[%emt 0:00:24]} 8. Nf3 {[%emt 0:00:10]} exd5 {[%emt 0:00:36]} 9. e3 {[%emt 0:00:19]} O-O {[%emt 0:00:50]} 10. Bd3 {[%emt 0:00:24]} b6 {[%emt 0:01:55]} 11. O-O {[%emt 0:02:10]} Bb7 {[%emt 0:02:06]} 12. Rc1 {[%emt 0:01:05]} c6 {[%emt 0:01:27]} 13. Re1 {[%emt 0:01:48]} Nd7 {[%emt 0:01:32]} 14. Ne2 {[%emt 0:01:17]} c5 {[%emt 0:03:43]} 15. Qd2 {[%emt 0:05:54]} c4 {[%emt 0:02:03]} 16. Bb1 {[%emt 0:00:18]} b5 {[%emt 0:02:18]} 17. a3 {[%emt 0:05:10]} a5 {[%emt 0:00:29]} 18. Qc3 {[%emt 0:01:17]} Qb6 {[%emt 0:00:40]} 19. b3 {[%emt 0:06:31]} b4 {[%emt 0:01:57]} 20. axb4 {[%emt 0:00:22]} axb4 {[%emt 0:00:09]} 21. Qc2 {[%emt 0:00:26]} Rfc8 {[%emt 0:06:34]} 22. Nf4 {[%emt 0:02:35]} Ra3 {[%emt 0:04:28]} 23. Nd2 {[%emt 0:08:42]} Qb5 {[%emt 0:12:25]} 24. bxc4 {[%emt 0:07:20]} dxc4 {[%emt 0:00:10]} 25. Nxc4 {[%emt 0:00:11]} Rc3 {[%emt 0:00:26]} 26. Qe2 {[%emt 0:11:57]} Qxc4 {[%emt 0:00:11]} 27. Qxc4 {[%emt 0:00:10]} R8xc4 {[%emt 0:00:42]} 28. Rcd1 {[%emt 0:02:48]} b3 {[%emt 0:02:01]} 29. e4 {[%emt 0:00:11]} b2 {[%emt 0:04:48]} 30. e5 {[%emt 0:01:38]} Rc1 {[%emt 0:02:46]} 31. Ba2 {[%emt 0:01:21]} Rxd1 {[%emt 0:00:42]} 32. Rxd1 {[%emt 0:01:44]} Rc1 {[%emt 0:00:07]} 33. Rxc1 {[%emt 0:00:17]} bxc1=Q# {[%emt 0:00:08]} 0-1

[Event "Czech Youth U12 Boys 2024"]
[Site "Kouty nad Desnou"]
[Date "2024.03.14"]
[Round "7.7"]
[White "Sochor, Vaclav"]
[Black "Fadrny, Jachym"]
[Result "1-0"]
[ECO "C16"]
[WhiteElo "1826"]
[BlackElo "1729"]
[Annotator "NA RC"]
[PlyCount "69"]
[EventDate "2024.03.10"]
[EventType "swiss"]
[EventCountry "CZE"]
[SourceTitle "playchess.com"]
[Source "ChessBase"]
[SourceQuality "1"]
[TimeControl "40/5400+30:1800+30"]

1. e4 {[%emt 0:00:15]} e6 {[%emt 0:00:14]} 2. d4 {[%emt 0:00:48]} d5 {[%emt 0:00:09]} 3. Nc3 {[%emt 0:00:54]} Bb4 {[%emt 0:00:52]} 4. e5 {[%emt 0:01:00]} Ne7 {[%emt 0:01:50]} 5. a3 {[%emt 0:04:18]} Ba5 {[%emt 0:01:25]} 6. b4 {[%emt 0:02:25]} Bb6 {[%emt 0:00:10]} 7. Na4 {[%emt 0:03:05]} Nbc6 {[%emt 0:02:20]} 8. Nf3 {[%emt 0:02:02]} Bd7 {[%emt 0:01:01]} 9. Nxb6 {[%emt 0:02:25]} axb6 {[%emt 0:00:25]} 10. Bg5 {[%emt 0:02:43]} O-O {[%emt 0:03:36]} 11. Bd3 {[%emt 0:02:29]} Qe8 {[%emt 0:03:21]} 12. c3 {[%emt 0:05:36]} Ng6 {[%emt 0:03:38]} 13. h4 {[%emt 0:04:39]} Nge7 {[%emt 0:14:52]} 14. Bc2 {[%emt 0:08:02]} f6 {[%emt 0:09:28]} 15. exf6 {[%emt 0:01:07]} gxf6 $16 {[%emt 0:00:10]} 16. Qd3 {[%emt 0:11:09]} Nf5 {[%emt 0:09:22]} 17. Bf4 {[%emt 0:11:39]} Qf7 {[%emt 0:11:10]} 18. g4 {[%emt 0:05:59]} Nd6 {[%emt 0:08:29]} 19. Bxd6 {[%emt 0:02:23]} cxd6 {[%emt 0:00:18]} 20. Bb3 {[%emt 0:06:35]} b5 {[%emt 0:06:02]} 21. Kd2 {[%emt 0:04:38]} Ne7 {[%emt 0:02:23]} 22. Rhg1 {[%emt 0:04:49]} Kh8 {[%emt 0:02:04]} 23. Ne1 {[%emt 0:02:21]} e5 {[%emt 0:02:08]} 24. Qe3 {[%emt 0:01:46]} Be6 {[%emt 0:06:25]} 25. Nd3 {[%emt 0:01:33]} Ra6 {[%emt 0:07:16]} 26. g5 {[%emt 0:01:58]} fxg5 {[%emt 0:01:11]} 27. dxe5 {[%emt 0:00:47]} d4 {[%emt 0:00:46]} 28. Qxd4 {[%emt 0:00:16]} Nf5 {[%emt 0:00:49]} 29. Bxe6 {[%emt 0:01:02]} Nxd4 {[%emt 0:00:23]} 30. Bxf7 {[%emt 0:00:10]} Nf3+ {[%emt 0:00:13]} 31. Ke3 {[%emt 0:00:28]} Nxg1 {[%emt 0:01:26]} 32. e6 {[%emt 0:00:05]} Rxf7 {[%emt 0:01:03]} 33. exf7 {[%emt 0:00:09]} Kg7 {[%emt 0:00:07]} 34. Rxg1 {[%emt 0:00:05]} Kxf7 {[%emt 0:00:06]} 35. Rxg5 {[%emt 0:00:09]} 1-0